[Event "Titled Tuesday Blitz June 20 Early 2023"]
[White "Sjugirov, Sanan"]
[Black "Subelj, Jan"]
[WhiteFideId "4189302"]
[BlackFideId "14618583"]
[WhiteElo "2569"]
[BlackElo "2499"]
[Result "1-0"]
[Round "6"]
[TimeControl "180+2"]
[Date "2023.06.20"]
[WhiteClock "0:00:06"]
[BlackClock "0:00:09"]
[Board "52"]

1. Nf3 {[%clk 0:03:00]}  d5 {[%clk 0:02:56]} 2. g3 {[%clk 0:03:01]}  Nd7 {[%clk 0:02:57]} 3. d4 {[%clk 0:02:59]}  Nb6 {[%clk 0:02:56]} 4. a4 {[%clk 0:02:59]}  a5 {[%clk 0:02:55]} 5. b3 {[%clk 0:02:59]}  Bf5 {[%clk 0:02:55]} 6. Ba3 {[%clk 0:02:59]}  Nf6 {[%clk 0:02:55]} 7. Bg2 {[%clk 0:02:59]}  e6 {[%clk 0:02:53]} 8. Bxf8 {[%clk 0:02:59]}  Kxf8 {[%clk 0:02:48]} 9. O-O {[%clk 0:02:59]}  h6 {[%clk 0:02:49]} 10. c4 {[%clk 0:02:59]}  c6 {[%clk 0:02:48]} 11. Nc3 {[%clk 0:02:53]}  Ne4 {[%clk 0:02:45]} 12. Qc1 {[%clk 0:02:51]}  Nxc3 {[%clk 0:02:44]} 13. Qxc3 {[%clk 0:02:51]}  Be4 {[%clk 0:02:45]} 14. Ne5 {[%clk 0:02:42]}  Bxg2 {[%clk 0:02:43]} 15. Kxg2 {[%clk 0:02:43]}  Nd7 {[%clk 0:02:43]} 16. Nd3 {[%clk 0:02:40]}  g6 {[%clk 0:02:39]} 17. e3 {[%clk 0:02:08]}  Kg7 {[%clk 0:02:38]} 18. Rfb1 {[%clk 0:01:57]}  Nf6 {[%clk 0:02:26]} 19. b4 {[%clk 0:01:54]}  dxc4 {[%clk 0:02:22]} 20. Qxc4 {[%clk 0:01:52]}  axb4 {[%clk 0:02:12]} 21. Rxb4 {[%clk 0:01:52]}  Ra7 {[%clk 0:02:09]} 22. Rab1 {[%clk 0:01:47]}  Qa8 {[%clk 0:02:02]} 23. Kg1 {[%clk 0:00:25]}  Nd5 {[%clk 0:02:01]} 24. R4b3 {[%clk 0:00:25]}  Rxa4 {[%clk 0:02:00]} 25. Qc5 {[%clk 0:00:26]}  b6 {[%clk 0:01:53]} 26. Qd6 {[%clk 0:00:25]}  Rd8 {[%clk 0:01:45]} 27. Qe5+ {[%clk 0:00:24]}  Kg8 {[%clk 0:01:45]} 28. e4 {[%clk 0:00:23]}  Ne7 {[%clk 0:01:38]} 29. Rxb6 {[%clk 0:00:23]}  Raxd4 {[%clk 0:01:28]} 30. Rb8 {[%clk 0:00:20]}  Qa2 {[%clk 0:01:28]} 31. Nf4 {[%clk 0:00:03]}  Qd2 {[%clk 0:00:10]} 32. Rxd8+ {[%clk 0:00:03]}  Rxd8 {[%clk 0:00:10]} 33. Rb7 {[%clk 0:00:03]}  Qd1+ {[%clk 0:00:07]} 34. Kg2 {[%clk 0:00:03]}  Re8 {[%clk 0:00:07]} 35. Nxe6 {[%clk 0:00:02]}  Nf5 {[%clk 0:00:06]} 36. exf5 {[%clk 0:00:01]}  Qd5+ {[%clk 0:00:06]} 37. Qxd5 {[%clk 0:00:01]}  cxd5 {[%clk 0:00:07]} 38. Nf4 {[%clk 0:00:02]}  g5 {[%clk 0:00:07]} 39. Nxd5 {[%clk 0:00:02]}  Re5 {[%clk 0:00:07]} 40. Nf6+ {[%clk 0:00:02]}  Kg7 {[%clk 0:00:08]} 41. Nh5+ {[%clk 0:00:03]}  Kf8 {[%clk 0:00:08]} 42. g4 {[%clk 0:00:03]}  Re4 {[%clk 0:00:09]} 43. Rb8+ {[%clk 0:00:03]}  Ke7 {[%clk 0:00:09]} 44. Re8+ {[%clk 0:00:04]}  Kxe8 {[%clk 0:00:09]} 45. Nf6+ {[%clk 0:00:05]}  Ke7 {[%clk 0:00:09]} 46. Nxe4 {[%clk 0:00:06]} 1-0


[Site "https://www.chess.com"]

[Event "Titled Tuesday Blitz June 20 Early 2023"]
[White "Sebag, Marie"]
[Black "Galchenko, Matvey"]
[WhiteFideId "617822"]
[BlackFideId "24175480"]
[WhiteElo "2431"]
[BlackElo "2423"]
[Result "0-1"]
[Round "6"]
[TimeControl "180+2"]
[Date "2023.06.20"]
[WhiteClock "0:00:00"]
[BlackClock "0:00:05"]
[Board "55"]

1. e4 {[%clk 0:02:56]}  e6 {[%clk 0:02:59]} 2. d4 {[%clk 0:02:55]}  d5 {[%clk 0:03:00]} 3. Nd2 {[%clk 0:02:56]}  a6 {[%clk 0:03:00]} 4. Ngf3 {[%clk 0:02:54]}  Nf6 {[%clk 0:03:00]} 5. Bd3 {[%clk 0:02:54]}  c5 {[%clk 0:02:59]} 6. e5 {[%clk 0:02:51]}  Nfd7 {[%clk 0:02:59]} 7. c3 {[%clk 0:02:51]}  Nc6 {[%clk 0:03:00]} 8. O-O {[%clk 0:02:50]}  g5 {[%clk 0:03:00]} 9. dxc5 {[%clk 0:02:37]}  g4 {[%clk 0:03:00]} 10. Nd4 {[%clk 0:02:37]}  Ndxe5 {[%clk 0:03:01]} 11. N2b3 {[%clk 0:02:36]}  Nxd3 {[%clk 0:03:00]} 12. Qxd3 {[%clk 0:02:35]}  e5 {[%clk 0:03:00]} 13. Nxc6 {[%clk 0:02:34]}  bxc6 {[%clk 0:03:00]} 14. Re1 {[%clk 0:02:34]}  Bg7 {[%clk 0:03:00]} 15. Bf4 {[%clk 0:02:32]}  f6 {[%clk 0:03:00]} 16. Bd2 {[%clk 0:02:15]}  a5 {[%clk 0:02:54]} 17. a4 {[%clk 0:02:05]}  Rb8 {[%clk 0:02:48]} 18. Nd4 {[%clk 0:01:57]}  Qd7 {[%clk 0:02:37]} 19. b4 {[%clk 0:01:41]}  O-O {[%clk 0:02:35]} 20. Nb3 {[%clk 0:01:40]}  axb4 {[%clk 0:02:26]} 21. cxb4 {[%clk 0:01:40]}  f5 {[%clk 0:02:21]} 22. Bc3 {[%clk 0:01:30]}  d4 {[%clk 0:02:19]} 23. Bd2 {[%clk 0:01:30]}  Qd5 {[%clk 0:02:13]} 24. Rac1 {[%clk 0:01:25]}  e4 {[%clk 0:02:06]} 25. Qb1 {[%clk 0:01:20]}  f4 {[%clk 0:01:46]} 26. Qxe4 {[%clk 0:01:08]}  Qxb3 {[%clk 0:01:40]} 27. Bxf4 {[%clk 0:00:47]}  Rxb4 {[%clk 0:01:35]} 28. Bd6 {[%clk 0:00:46]}  d3 {[%clk 0:01:35]} 29. Qxc6 {[%clk 0:00:29]}  d2 {[%clk 0:01:30]} 30. Bxf8 {[%clk 0:00:28]}  dxc1=Q {[%clk 0:00:26]} 31. Rxc1 {[%clk 0:00:24]}  Rd4 {[%clk 0:00:21]} 32. h3 {[%clk 0:00:17]}  Be5 {[%clk 0:00:21]} 33. Rf1 {[%clk 0:00:13]}  Qe6 {[%clk 0:00:08]} 34. Qxe6+ {[%clk 0:00:08]}  Bxe6 {[%clk 0:00:09]} 35. Bh6 {[%clk 0:00:07]}  gxh3 {[%clk 0:00:07]} 36. gxh3 {[%clk 0:00:07]}  Rxa4 {[%clk 0:00:08]} 37. Re1 {[%clk 0:00:06]}  Ra1 {[%clk 0:00:05]} 38. Rxa1 {[%clk 0:00:06]}  Bxa1 {[%clk 0:00:06]} 39. Be3 {[%clk 0:00:06]}  Bd5 {[%clk 0:00:06]} 40. Kh2 {[%clk 0:00:06]}  Be5+ {[%clk 0:00:06]} 41. f4 {[%clk 0:00:06]}  Bc7 {[%clk 0:00:06]} 42. Kg3 {[%clk 0:00:06]}  Kf7 {[%clk 0:00:07]} 43. Bd4 {[%clk 0:00:06]}  Kg6 {[%clk 0:00:08]} 44. Be3 {[%clk 0:00:06]}  Kf5 {[%clk 0:00:09]} 45. Bd2 {[%clk 0:00:06]}  Bb8 {[%clk 0:00:08]} 46. Bc1 {[%clk 0:00:06]}  Bc7 {[%clk 0:00:08]} 47. Bd2 {[%clk 0:00:07]}  Bd8 {[%clk 0:00:09]} 48. Bc1 {[%clk 0:00:07]}  Ba5 {[%clk 0:00:09]} 49. Be3 {[%clk 0:00:07]}  Bb4 {[%clk 0:00:10]} 50. h4 {[%clk 0:00:06]}  h5 {[%clk 0:00:09]} 51. Bd4 {[%clk 0:00:05]}  Be1+ {[%clk 0:00:09]} 52. Kh3 {[%clk 0:00:04]}  Bc6 {[%clk 0:00:06]} 53. Be5 {[%clk 0:00:03]}  Bb5 {[%clk 0:00:06]} 54. Bd6 {[%clk 0:00:00]}  Ke6 {[%clk 0:00:05]} 0-1


[Site "https://www.chess.com"]

[Event "Titled Tuesday Blitz June 20 Early 2023"]
[White "Xu, Yi"]
[Black "Girya, Olga"]
[WhiteFideId "8605564"]
[BlackFideId "4195752"]
[WhiteElo "2460"]
[BlackElo "2263"]
[Result "1-0"]
[Round "6"]
[TimeControl "180+2"]
[Date "2023.06.20"]
[WhiteClock "0:00:07"]
[BlackClock "0:00:00"]
[Board "56"]

1. d4 {[%clk 0:03:00]}  Nf6 {[%clk 0:02:59]} 2. c4 {[%clk 0:03:01]}  e6 {[%clk 0:02:59]} 3. Nf3 {[%clk 0:03:01]}  d5 {[%clk 0:02:59]} 4. Nc3 {[%clk 0:03:01]}  Be7 {[%clk 0:02:59]} 5. Bf4 {[%clk 0:03:00]}  dxc4 {[%clk 0:02:59]} 6. e3 {[%clk 0:02:52]}  a6 {[%clk 0:02:59]} 7. Bxc4 {[%clk 0:02:43]}  b5 {[%clk 0:02:59]} 8. Be2 {[%clk 0:02:44]}  Nbd7 {[%clk 0:02:59]} 9. O-O {[%clk 0:02:42]}  Bb7 {[%clk 0:02:59]} 10. Rc1 {[%clk 0:02:36]}  c5 {[%clk 0:02:54]} 11. a4 {[%clk 0:02:30]}  b4 {[%clk 0:02:46]} 12. Nb1 {[%clk 0:02:30]}  O-O {[%clk 0:02:42]} 13. Nbd2 {[%clk 0:02:14]}  cxd4 {[%clk 0:02:42]} 14. Bc7 {[%clk 0:02:13]}  Qe8 {[%clk 0:02:39]} 15. Nxd4 {[%clk 0:02:13]}  Nc5 {[%clk 0:02:25]} 16. b3 {[%clk 0:01:33]}  Nd5 {[%clk 0:02:20]} 17. Be5 {[%clk 0:01:27]}  Nc3 {[%clk 0:02:18]} 18. Qe1 {[%clk 0:01:23]}  f6 {[%clk 0:01:58]} 19. Bg3 {[%clk 0:01:18]}  Nxe2+ {[%clk 0:01:32]} 20. Qxe2 {[%clk 0:00:46]}  Qf7 {[%clk 0:01:31]} 21. Nc4 {[%clk 0:00:27]}  e5 {[%clk 0:01:09]} 22. Nf5 {[%clk 0:00:27]}  Nxb3 {[%clk 0:01:04]} 23. Qg4 {[%clk 0:00:27]}  Kh8 {[%clk 0:00:58]} 24. Rcd1 {[%clk 0:00:28]}  Rfd8 {[%clk 0:00:53]} 25. Ncd6 {[%clk 0:00:26]}  Bxd6 {[%clk 0:00:40]} 26. Nxd6 {[%clk 0:00:26]}  Qc7 {[%clk 0:00:22]} 27. Qxb4 {[%clk 0:00:16]}  Nc5 {[%clk 0:00:22]} 28. Nxb7 {[%clk 0:00:13]}  Nxb7 {[%clk 0:00:22]} 29. Rc1 {[%clk 0:00:14]}  Qf7 {[%clk 0:00:19]} 30. f4 {[%clk 0:00:08]}  a5 {[%clk 0:00:19]} 31. Qb2 {[%clk 0:00:05]}  exf4 {[%clk 0:00:14]} 32. Bxf4 {[%clk 0:00:06]}  Nd6 {[%clk 0:00:13]} 33. Rfd1 {[%clk 0:00:05]}  Ne4 {[%clk 0:00:11]} 34. Qe2 {[%clk 0:00:03]}  Rxd1+ {[%clk 0:00:10]} 35. Qxd1 {[%clk 0:00:02]}  Re8 {[%clk 0:00:09]} 36. Qd4 {[%clk 0:00:02]}  h6 {[%clk 0:00:09]} 37. h3 {[%clk 0:00:03]}  Qg6 {[%clk 0:00:09]} 38. Rd1 {[%clk 0:00:03]}  Kh7 {[%clk 0:00:09]} 39. Kh2 {[%clk 0:00:04]}  Re7 {[%clk 0:00:09]} 40. Qd3 {[%clk 0:00:04]}  Ng5 {[%clk 0:00:08]} 41. Qxg6+ {[%clk 0:00:04]}  Kxg6 {[%clk 0:00:09]} 42. Rd5 {[%clk 0:00:04]}  Ne6 {[%clk 0:00:07]} 43. Rxa5 {[%clk 0:00:04]}  Nxf4 {[%clk 0:00:07]} 44. exf4 {[%clk 0:00:05]}  Re4 {[%clk 0:00:08]} 45. Kg3 {[%clk 0:00:05]}  Re3+ {[%clk 0:00:08]} 46. Kf2 {[%clk 0:00:06]}  Ra3 {[%clk 0:00:08]} 47. h4 {[%clk 0:00:04]}  h5 {[%clk 0:00:08]} 48. f5+ {[%clk 0:00:04]}  Kh6 {[%clk 0:00:07]} 49. Ra7 {[%clk 0:00:04]}  g6 {[%clk 0:00:07]} 50. Ra6 {[%clk 0:00:05]}  Ra2+ {[%clk 0:00:04]} 51. Kf3 {[%clk 0:00:04]}  Ra3+ {[%clk 0:00:05]} 52. Kf2 {[%clk 0:00:04]}  Kg7 {[%clk 0:00:04]} 53. Ra7+ {[%clk 0:00:03]}  Kh6 {[%clk 0:00:05]} 54. Rf7 {[%clk 0:00:03]}  Rxa4 {[%clk 0:00:03]} 55. Rxf6 {[%clk 0:00:03]}  Rf4+ {[%clk 0:00:03]} 56. Kg3 {[%clk 0:00:03]}  Rxf5 {[%clk 0:00:04]} 57. Rxf5 {[%clk 0:00:04]}  gxf5 {[%clk 0:00:04]} 58. Kf4 {[%clk 0:00:04]}  Kg6 {[%clk 0:00:05]} 59. Ke5 {[%clk 0:00:05]}  f4 {[%clk 0:00:02]} 60. Ke6 {[%clk 0:00:05]}  Kg7 {[%clk 0:00:02]} 61. Kf5 {[%clk 0:00:05]}  Kh6 {[%clk 0:00:01]} 62. Kf6 {[%clk 0:00:06]}  Kh7 {[%clk 0:00:01]} 63. Kg5 {[%clk 0:00:06]}  Kg7 {[%clk 0:00:01]} 64. Kxh5 {[%clk 0:00:07]}  Kf6 {[%clk 0:00:02]} 65. Kg4 {[%clk 0:00:07]}  Ke5 {[%clk 0:00:00]} 66. Kg5 {[%clk 0:00:07]} 1-0


[Site "https://www.chess.com"]

[Event "Titled Tuesday Blitz June 20 Early 2023"]
[White "Weetik, Vjacheslav"]
[Black "Mamedov, Edgar"]
[WhiteFideId "4153472"]
[BlackFideId "13739980"]
[WhiteElo "2469"]
[BlackElo "2317"]
[Result "1-0"]
[Round "6"]
[TimeControl "180+2"]
[Date "2023.06.20"]
[WhiteClock "0:00:06"]
[BlackClock "0:00:00"]
[Board "62"]

1. d4 {[%clk 0:02:58]}  d5 {[%clk 0:02:59]} 2. c4 {[%clk 0:02:58]}  c6 {[%clk 0:02:47]} 3. Nf3 {[%clk 0:02:57]}  Nf6 {[%clk 0:02:46]} 4. g3 {[%clk 0:02:57]}  Bf5 {[%clk 0:02:43]} 5. Nc3 {[%clk 0:02:57]}  e6 {[%clk 0:02:35]} 6. Nh4 {[%clk 0:02:57]}  Be4 {[%clk 0:02:35]} 7. f3 {[%clk 0:02:55]}  Bg6 {[%clk 0:02:34]} 8. Qb3 {[%clk 0:02:54]}  Qb6 {[%clk 0:02:31]} 9. c5 {[%clk 0:02:45]}  Qc7 {[%clk 0:02:27]} 10. Bf4 {[%clk 0:02:40]}  Qc8 {[%clk 0:02:26]} 11. e4 {[%clk 0:02:36]}  dxe4 {[%clk 0:02:20]} 12. Nxg6 {[%clk 0:02:35]}  hxg6 {[%clk 0:02:20]} 13. fxe4 {[%clk 0:02:35]}  Nh5 {[%clk 0:02:11]} 14. O-O-O {[%clk 0:02:21]}  Nd7 {[%clk 0:02:08]} 15. Bc4 {[%clk 0:02:08]}  Nxf4 {[%clk 0:02:02]} 16. gxf4 {[%clk 0:02:09]}  Qc7 {[%clk 0:01:57]} 17. f5 {[%clk 0:02:02]}  gxf5 {[%clk 0:01:54]} 18. exf5 {[%clk 0:02:02]}  Qf4+ {[%clk 0:01:51]} 19. Rd2 {[%clk 0:01:48]}  O-O-O {[%clk 0:01:27]} 20. Rf1 {[%clk 0:01:32]}  Qh6 {[%clk 0:01:16]} 21. Ne4 {[%clk 0:01:14]}  Bxc5 {[%clk 0:01:03]} 22. fxe6 {[%clk 0:01:04]}  fxe6 {[%clk 0:00:58]} 23. Bxe6 {[%clk 0:01:00]}  Bb6 {[%clk 0:00:49]} 24. Nd6+ {[%clk 0:00:56]}  Kb8 {[%clk 0:00:47]} 25. Nf7 {[%clk 0:00:56]}  Nc5 {[%clk 0:00:43]} 26. Qg3+ {[%clk 0:00:36]}  Bc7 {[%clk 0:00:37]} 27. Nxh6 {[%clk 0:00:15]}  Bxg3 {[%clk 0:00:36]} 28. Nf7 {[%clk 0:00:16]}  Ne4 {[%clk 0:00:08]} 29. hxg3 {[%clk 0:00:09]}  Nxd2 {[%clk 0:00:08]} 30. Kxd2 {[%clk 0:00:10]}  Rh2+ {[%clk 0:00:06]} 31. Kc3 {[%clk 0:00:09]}  Re8 {[%clk 0:00:06]} 32. Ng5 {[%clk 0:00:03]}  Re2 {[%clk 0:00:03]} 33. Rf7 {[%clk 0:00:03]}  R8xe6 {[%clk 0:00:02]} 34. Nxe6 {[%clk 0:00:03]}  Rxe6 {[%clk 0:00:03]} 35. Rxg7 {[%clk 0:00:04]}  Re3+ {[%clk 0:00:03]} 36. Kd2 {[%clk 0:00:04]}  Rf3 {[%clk 0:00:03]} 37. Ke2 {[%clk 0:00:02]}  Rf5 {[%clk 0:00:03]} 38. g4 {[%clk 0:00:03]}  Rf4 {[%clk 0:00:03]} 39. Ke3 {[%clk 0:00:03]}  Rf1 {[%clk 0:00:03]} 40. Ke2 {[%clk 0:00:03]}  Rb1 {[%clk 0:00:03]} 41. g5 {[%clk 0:00:03]}  Rxb2+ {[%clk 0:00:03]} 42. Kf3 {[%clk 0:00:04]}  Rxa2 {[%clk 0:00:02]} 43. g6 {[%clk 0:00:04]}  Ra1 {[%clk 0:00:02]} 44. Rf7 {[%clk 0:00:05]}  Rg1 {[%clk 0:00:01]} 45. g7 {[%clk 0:00:05]}  a5 {[%clk 0:00:01]} 46. Rf8+ {[%clk 0:00:05]}  Ka7 {[%clk 0:00:01]} 47. g8=Q {[%clk 0:00:06]}  Rxg8 {[%clk 0:00:01]} 48. Rxg8 {[%clk 0:00:07]}  Kb6 {[%clk 0:00:01]} 49. Ke4 {[%clk 0:00:08]}  Kb5 {[%clk 0:00:02]} 50. Rb8 {[%clk 0:00:07]}  b6 {[%clk 0:00:01]} 51. Kd3 {[%clk 0:00:07]}  a4 {[%clk 0:00:02]} 52. Kc3 {[%clk 0:00:08]}  Ka5 {[%clk 0:00:02]} 53. Kc4 {[%clk 0:00:07]}  Ka6 {[%clk 0:00:02]} 54. Ra8+ {[%clk 0:00:06]}  Kb7 {[%clk 0:00:02]} 55. Rg8 {[%clk 0:00:07]}  Ka6 {[%clk 0:00:01]} 56. Kb4 {[%clk 0:00:07]}  b5 {[%clk 0:00:02]} 57. Rg6 {[%clk 0:00:05]}  Kb6 {[%clk 0:00:02]} 58. d5 {[%clk 0:00:05]}  Kb7 {[%clk 0:00:00]} 59. Rxc6 {[%clk 0:00:06]} 1-0


[Site "https://www.chess.com"]

[Event "Titled Tuesday Blitz June 20 Early 2023"]
[White "Pakleza, Zbigniew"]
[Black "Karamsetty, Jeevan"]
[WhiteFideId "1119290"]
[BlackFideId "2025337"]
[WhiteElo "2410"]
[BlackElo "2131"]
[Result "1-0"]
[Round "6"]
[TimeControl "180+2"]
[Date "2023.06.20"]
[WhiteClock "0:00:25"]
[BlackClock "0:00:02"]
[Board "63"]

1. d4 {[%clk 0:03:00]}  g6 {[%clk 0:02:58]} 2. Nf3 {[%clk 0:03:00]}  Bg7 {[%clk 0:02:59]} 3. Bf4 {[%clk 0:03:00]}  d6 {[%clk 0:02:58]} 4. e3 {[%clk 0:03:00]}  Nd7 {[%clk 0:02:58]} 5. h3 {[%clk 0:03:01]}  e5 {[%clk 0:02:58]} 6. Bh2 {[%clk 0:03:02]}  Qe7 {[%clk 0:02:58]} 7. Be2 {[%clk 0:03:02]}  Nh6 {[%clk 0:02:58]} 8. O-O {[%clk 0:03:02]}  O-O {[%clk 0:02:59]} 9. c3 {[%clk 0:03:01]}  c6 {[%clk 0:02:58]} 10. a4 {[%clk 0:02:59]}  f5 {[%clk 0:02:58]} 11. Na3 {[%clk 0:02:56]}  g5 {[%clk 0:02:47]} 12. Nc4 {[%clk 0:02:50]}  f4 {[%clk 0:02:38]} 13. dxe5 {[%clk 0:02:38]}  d5 {[%clk 0:02:38]} 14. Nd6 {[%clk 0:02:25]}  Nxe5 {[%clk 0:02:37]} 15. Nxc8 {[%clk 0:02:25]}  Raxc8 {[%clk 0:02:35]} 16. exf4 {[%clk 0:02:23]}  gxf4 {[%clk 0:02:36]} 17. Re1 {[%clk 0:02:17]}  Rce8 {[%clk 0:02:30]} 18. Nxe5 {[%clk 0:01:56]}  Bxe5 {[%clk 0:02:25]} 19. Bd3 {[%clk 0:01:54]}  Qg7 {[%clk 0:02:16]} 20. Qf3 {[%clk 0:01:38]}  Kh8 {[%clk 0:02:06]} 21. Re2 {[%clk 0:01:28]}  Nf7 {[%clk 0:01:40]} 22. Qg4 {[%clk 0:01:28]}  Ng5 {[%clk 0:01:29]} 23. Rae1 {[%clk 0:01:14]}  Rg8 {[%clk 0:00:27]} 24. Bxf4 {[%clk 0:00:46]}  Nxh3+ {[%clk 0:00:08]} 25. Qxh3 {[%clk 0:00:38]}  Bxc3 {[%clk 0:00:03]} 26. Rxe8 {[%clk 0:00:26]}  Bxe1 {[%clk 0:00:03]} 27. Be5 {[%clk 0:00:26]}  Rxe8 {[%clk 0:00:02]} 28. Qxh7# {[%clk 0:00:25]} 1-0


[Site "https://www.chess.com"]

[Event "Titled Tuesday Blitz June 20 Early 2023"]
[White "Oro, Faustino"]
[Black "Aarav Dengla"]
[WhiteFideId "20000197"]
[BlackFideId "45059756"]
[WhiteElo "1984"]
[BlackElo "2288"]
[Result "1-0"]
[Round "6"]
[TimeControl "180+2"]
[Date "2023.06.20"]
[WhiteClock "0:00:05"]
[BlackClock "0:00:00"]
[Board "64"]

1. Nf3 {[%clk 0:03:00]}  d5 {[%clk 0:02:59]} 2. g3 {[%clk 0:02:59]}  g6 {[%clk 0:02:57]} 3. Bg2 {[%clk 0:02:59]}  Bg7 {[%clk 0:02:57]} 4. d4 {[%clk 0:02:59]}  Nf6 {[%clk 0:02:55]} 5. O-O {[%clk 0:02:59]}  O-O {[%clk 0:02:53]} 6. c4 {[%clk 0:03:00]}  c6 {[%clk 0:02:51]} 7. cxd5 {[%clk 0:02:59]}  cxd5 {[%clk 0:02:51]} 8. Nc3 {[%clk 0:02:59]}  Nc6 {[%clk 0:02:49]} 9. Ne5 {[%clk 0:02:58]}  Be6 {[%clk 0:02:32]} 10. Bf4 {[%clk 0:02:43]}  Nh5 {[%clk 0:02:05]} 11. Nxc6 {[%clk 0:02:41]}  bxc6 {[%clk 0:02:06]} 12. Be3 {[%clk 0:02:42]}  Qb6 {[%clk 0:02:03]} 13. Na4 {[%clk 0:02:37]}  Qb5 {[%clk 0:02:00]} 14. Rc1 {[%clk 0:02:23]}  Nf6 {[%clk 0:01:56]} 15. Nc5 {[%clk 0:02:16]}  Bf5 {[%clk 0:01:52]} 16. b3 {[%clk 0:02:07]}  Ng4 {[%clk 0:01:46]} 17. Bf4 {[%clk 0:01:56]}  e5 {[%clk 0:01:42]} 18. dxe5 {[%clk 0:01:56]}  Nxe5 {[%clk 0:01:41]} 19. Be3 {[%clk 0:01:51]}  Nd7 {[%clk 0:01:29]} 20. Qd2 {[%clk 0:01:32]}  Rfe8 {[%clk 0:01:23]} 21. Rfe1 {[%clk 0:01:12]}  Rxe3 {[%clk 0:00:54]} 22. Qxe3 {[%clk 0:00:43]}  d4 {[%clk 0:00:53]} 23. Qf3 {[%clk 0:00:44]}  Nxc5 {[%clk 0:00:53]} 24. Qxc6 {[%clk 0:00:44]}  Qxc6 {[%clk 0:00:53]} 25. Bxc6 {[%clk 0:00:45]}  Rc8 {[%clk 0:00:54]} 26. Rxc5 {[%clk 0:00:45]}  Bf8 {[%clk 0:00:55]} 27. Rcc1 {[%clk 0:00:42]}  Ba3 {[%clk 0:00:51]} 28. Rc4 {[%clk 0:00:39]}  Be6 {[%clk 0:00:50]} 29. Bd5 {[%clk 0:00:39]}  Rxc4 {[%clk 0:00:45]} 30. Bxc4 {[%clk 0:00:40]}  Bxc4 {[%clk 0:00:43]} 31. bxc4 {[%clk 0:00:40]}  Bb4 {[%clk 0:00:40]} 32. Rd1 {[%clk 0:00:40]}  Bc5 {[%clk 0:00:40]} 33. Kg2 {[%clk 0:00:39]}  Kf8 {[%clk 0:00:40]} 34. Kf3 {[%clk 0:00:40]}  Ke7 {[%clk 0:00:40]} 35. e3 {[%clk 0:00:41]}  dxe3 {[%clk 0:00:39]} 36. fxe3 {[%clk 0:00:42]}  Ke6 {[%clk 0:00:38]} 37. Rb1 {[%clk 0:00:41]}  Bb6 {[%clk 0:00:36]} 38. Ke4 {[%clk 0:00:40]}  Kd6 {[%clk 0:00:31]} 39. Rb5 {[%clk 0:00:39]}  Kc6 {[%clk 0:00:30]} 40. Kd3 {[%clk 0:00:38]}  Bc7 {[%clk 0:00:30]} 41. e4 {[%clk 0:00:37]}  f6 {[%clk 0:00:27]} 42. Rd5 {[%clk 0:00:35]}  Bb6 {[%clk 0:00:22]} 43. a4 {[%clk 0:00:31]}  Bc7 {[%clk 0:00:22]} 44. a5 {[%clk 0:00:30]}  a6 {[%clk 0:00:22]} 45. Kd4 {[%clk 0:00:29]}  h6 {[%clk 0:00:19]} 46. Rc5+ {[%clk 0:00:27]}  Kd6 {[%clk 0:00:19]} 47. e5+ {[%clk 0:00:25]}  fxe5+ {[%clk 0:00:18]} 48. Rxe5 {[%clk 0:00:26]}  Kd7 {[%clk 0:00:18]} 49. Rd5+ {[%clk 0:00:24]}  Ke6 {[%clk 0:00:18]} 50. Rc5 {[%clk 0:00:15]}  Kd6 {[%clk 0:00:18]} 51. Rd5+ {[%clk 0:00:11]}  Kc6 {[%clk 0:00:17]} 52. Ke4 {[%clk 0:00:10]}  Bd6 {[%clk 0:00:16]} 53. Rd3 {[%clk 0:00:07]}  Kc5 {[%clk 0:00:11]} 54. Rf3 {[%clk 0:00:07]}  Be7 {[%clk 0:00:10]} 55. Rf7 {[%clk 0:00:07]}  Bg5 {[%clk 0:00:10]} 56. Rg7 {[%clk 0:00:06]}  Kxc4 {[%clk 0:00:09]} 57. Rxg6 {[%clk 0:00:06]}  Kb5 {[%clk 0:00:10]} 58. h4 {[%clk 0:00:05]}  Bc1 {[%clk 0:00:09]} 59. g4 {[%clk 0:00:04]}  Kxa5 {[%clk 0:00:09]} 60. Kf5 {[%clk 0:00:04]}  Kb5 {[%clk 0:00:00]} 61. Ke4 {[%clk 0:00:05]} 1-0


[Site "https://www.chess.com"]

[Event "Titled Tuesday Blitz June 20 Early 2023"]
[White "Gavrilov, Maxim"]
[Black "Cherniaiev, Tykhon"]
[WhiteFideId "24271454"]
[BlackFideId "14182360"]
[WhiteElo "1969"]
[BlackElo "2450"]
[Result "1/2-1/2"]
[Round "6"]
[TimeControl "180+2"]
[Date "2023.06.20"]
[WhiteClock "0:01:34"]
[BlackClock "0:00:07"]
[Board "65"]

1. d4 {[%clk 0:03:00]}  Nf6 {[%clk 0:02:59]} 2. c4 {[%clk 0:03:00]}  e6 {[%clk 0:02:46]} 3. Nc3 {[%clk 0:02:59]}  d5 {[%clk 0:02:46]} 4. cxd5 {[%clk 0:02:59]}  exd5 {[%clk 0:02:46]} 5. Bg5 {[%clk 0:02:59]}  Be7 {[%clk 0:02:38]} 6. e3 {[%clk 0:02:59]}  O-O {[%clk 0:02:38]} 7. Bd3 {[%clk 0:02:59]}  c6 {[%clk 0:02:37]} 8. Qc2 {[%clk 0:02:59]}  h6 {[%clk 0:02:34]} 9. Bh4 {[%clk 0:02:57]}  a5 {[%clk 0:02:21]} 10. h3 {[%clk 0:02:56]}  Na6 {[%clk 0:02:17]} 11. a3 {[%clk 0:02:56]}  Nh5 {[%clk 0:01:53]} 12. Bxe7 {[%clk 0:02:51]}  Qxe7 {[%clk 0:01:54]} 13. Nge2 {[%clk 0:02:46]}  Nf6 {[%clk 0:01:33]} 14. O-O {[%clk 0:02:43]}  Nc7 {[%clk 0:01:31]} 15. Rab1 {[%clk 0:02:37]}  Re8 {[%clk 0:01:25]} 16. Rfe1 {[%clk 0:02:30]}  Be6 {[%clk 0:01:16]} 17. Na4 {[%clk 0:02:25]}  Nd7 {[%clk 0:01:11]} 18. Nf4 {[%clk 0:02:20]}  Qd6 {[%clk 0:01:05]} 19. Rec1 {[%clk 0:02:12]}  Na6 {[%clk 0:00:44]} 20. Nxe6 {[%clk 0:02:07]}  fxe6 {[%clk 0:00:39]} 21. Bg6 {[%clk 0:02:04]}  Rf8 {[%clk 0:00:37]} 22. e4 {[%clk 0:02:00]}  Qf4 {[%clk 0:00:31]} 23. Nc3 {[%clk 0:01:54]}  Qg5 {[%clk 0:00:21]} 24. e5 {[%clk 0:01:50]}  c5 {[%clk 0:00:20]} 25. Ne2 {[%clk 0:01:45]}  cxd4 {[%clk 0:00:20]} 26. Nxd4 {[%clk 0:01:46]}  Nxe5 {[%clk 0:00:19]} 27. Bh7+ {[%clk 0:01:42]}  Kh8 {[%clk 0:00:18]} 28. Nxe6 {[%clk 0:01:41]}  Nf3+ {[%clk 0:00:15]} 29. Kf1 {[%clk 0:01:35]}  Nh2+ {[%clk 0:00:14]} 30. Kg1 {[%clk 0:01:33]}  Nf3+ {[%clk 0:00:14]} 31. Kf1 {[%clk 0:01:34]}  Nh2+ {[%clk 0:00:06]} 32. Kg1 {[%clk 0:01:34]}  Nf3+ {[%clk 0:00:07]} 1/2-1/2


[Site "https://www.chess.com"]